[Event "*** SCC Grand Prix: Titled Tuesday Blitz"]
[Site "Chess.com"]
[Date "2020.07.07"]
[Round "4"]
[White "davidkalashian"]
[Black "chito89"]
[Result "0-1"]
[WhiteElo "2624"]
[BlackElo "2816"]
[TimeControl "180+1"]
[EndTime "10:39:40 PDT"]
[Termination "chito89 won by resignation"]

1. d4 {[%clk 0:03:00.9]} 1... Nf6 {[%clk 0:02:59.7]} 2. c4 {[%clk 0:03:00.3]}
2... e6 {[%clk 0:03:00]} 3. Nf3 {[%clk 0:02:59.9]} 3... Bb4+ {[%clk 0:03:00.3]}
4. Bd2 {[%clk 0:02:58.4]} 4... a5 {[%clk 0:03:00.7]} 5. g3 {[%clk 0:02:53.8]}
5... O-O {[%clk 0:03:00.3]} 6. Bg2 {[%clk 0:02:54.1]} 6... d5 {[%clk 0:03:00.5]}
7. Qc2 {[%clk 0:02:51.6]} 7... c5 {[%clk 0:02:59.4]} 8. dxc5 {[%clk 0:02:46.9]}
8... d4 {[%clk 0:02:57.8]} 9. O-O {[%clk 0:02:37.6]} 9... Bxc5 {[%clk
0:02:57.2]} 10. Rd1 {[%clk 0:02:37]} 10... Nc6 {[%clk 0:02:54.4]} 11. Bf4 {[%clk
0:02:29]} 11... Qe7 {[%clk 0:02:09.8]} 12. Ne5 {[%clk 0:02:23.4]} 12... Nxe5
{[%clk 0:02:10.3]} 13. Bxe5 {[%clk 0:02:23.9]} 13... Rd8 {[%clk 0:02:11.1]} 14.
h3 {[%clk 0:02:01.7]} 14... Ne8 {[%clk 0:02:01.1]} 15. Na3 {[%clk 0:01:45]}
15... f6 {[%clk 0:02:00.5]} 16. Bf4 {[%clk 0:01:43.4]} 16... e5 {[%clk
0:01:58.2]} 17. Bc1 {[%clk 0:01:38.5]} 17... Be6 {[%clk 0:01:57.5]} 18. Nb5
{[%clk 0:01:31.3]} 18... Rac8 {[%clk 0:01:56.7]} 19. b3 {[%clk 0:01:29.1]} 19...
Nd6 {[%clk 0:01:48.7]} 20. a4 {[%clk 0:01:22.8]} 20... b6 {[%clk 0:01:37.4]} 21.
Bb2 {[%clk 0:01:10.6]} 21... Bf5 {[%clk 0:01:29.8]} 22. Qc1 {[%clk 0:01:01.4]}
22... Bb4 {[%clk 0:01:29.9]} 23. e3 {[%clk 0:00:51.4]} 23... Nxb5 {[%clk
0:01:28.5]} 24. axb5 {[%clk 0:00:50.4]} 24... d3 {[%clk 0:01:18.9]} 25. e4
{[%clk 0:00:46.3]} 25... Be6 {[%clk 0:01:17.3]} 26. Qe3 {[%clk 0:00:30.4]} 26...
Bc5 {[%clk 0:01:09.7]} 27. Qf3 {[%clk 0:00:30]} 27... Qd7 {[%clk 0:01:05.7]} 28.
Bc3 {[%clk 0:00:26.7]} 28... Bd4 {[%clk 0:00:48.5]} 29. Rac1 {[%clk 0:00:20.6]}
29... a4 {[%clk 0:00:38]} 30. bxa4 {[%clk 0:00:20.4]} 30... Rxc4 {[%clk
0:00:37.9]} 31. Bxd4 {[%clk 0:00:18.4]} 31... Rxc1 {[%clk 0:00:37.7]} 32. Rxc1
{[%clk 0:00:18]} 32... Qxd4 {[%clk 0:00:38.6]} 33. Rd1 {[%clk 0:00:15.2]} 33...
d2 {[%clk 0:00:36.3]} 34. Bf1 {[%clk 0:00:14.1]} 34... Qxa4 {[%clk 0:00:34.8]}
35. Qe2 {[%clk 0:00:11.4]} 35... Qc2 {[%clk 0:00:33.5]} 0-1

[Event "*** SCC Grand Prix: Titled Tuesday Blitz"]
[Site "Chess.com"]
[Date "2020.07.07"]
[Round "4"]
[White "mishanick"]
[Black "Sashadav97"]
[Result "1-0"]
[WhiteElo "2852"]
[BlackElo "2544"]
[TimeControl "180+1"]
[EndTime "10:39:40 PDT"]
[Termination "mishanick won by resignation"]

1. d4 {[%clk 0:03:00.9]} 1... d5 {[%clk 0:02:57.7]} 2. c4 {[%clk 0:03:01.3]}
2... e6 {[%clk 0:02:57]} 3. Nf3 {[%clk 0:03:01.8]} 3... a6 {[%clk 0:02:53.5]} 4.
cxd5 {[%clk 0:03:00.5]} 4... exd5 {[%clk 0:02:54.4]} 5. Nc3 {[%clk 0:03:01.2]}
5... c6 {[%clk 0:02:49.2]} 6. Qb3 {[%clk 0:03:01.6]} 6... Bd6 {[%clk 0:02:41.1]}
7. e4 {[%clk 0:02:50.5]} 7... dxe4 {[%clk 0:02:35.4]} 8. Ng5 {[%clk 0:02:33.4]}
8... Nh6 {[%clk 0:02:34.8]} 9. Ngxe4 {[%clk 0:02:26.5]} 9... Nf5 {[%clk
0:02:31.1]} 10. Bc4 {[%clk 0:02:20.1]} 10... O-O {[%clk 0:02:30.9]} 11. Be3
{[%clk 0:02:03.9]} 11... b5 {[%clk 0:02:15]} 12. Bd3 {[%clk 0:02:03.8]} 12...
Be6 {[%clk 0:02:09.3]} 13. Qd1 {[%clk 0:02:02.5]} 13... Nxe3 {[%clk 0:02:05.9]}
14. fxe3 {[%clk 0:02:02.1]} 14... Qh4+ {[%clk 0:01:58.5]} 15. g3 {[%clk
0:02:01.2]} 15... Qe7 {[%clk 0:01:59]} 16. O-O {[%clk 0:01:59.9]} 16... Nd7
{[%clk 0:01:57.3]} 17. Qh5 {[%clk 0:01:56.8]} 17... g6 {[%clk 0:01:53.1]} 18.
Qh6 {[%clk 0:01:56.9]} 18... f5 {[%clk 0:01:47.4]} 19. Ng5 {[%clk 0:01:55.6]}
19... Nf6 {[%clk 0:01:43.7]} 20. Nxe6 {[%clk 0:01:47.1]} 20... Qxe6 {[%clk
0:01:43.1]} 21. Rae1 {[%clk 0:01:44.8]} 21... Ng4 {[%clk 0:01:33.3]} 22. Qg5
{[%clk 0:01:34.3]} 22... h6 {[%clk 0:01:22.1]} 23. Qh4 {[%clk 0:01:34.2]} 23...
Be7 {[%clk 0:01:22.3]} 24. Qh3 {[%clk 0:01:33.9]} 24... Bg5 {[%clk 0:01:22.8]}
25. e4 {[%clk 0:00:50.8]} 25... Be3+ {[%clk 0:01:14.3]} 26. Kg2 {[%clk
0:00:45.1]} 26... fxe4 {[%clk 0:00:44.4]} 27. Nxe4 {[%clk 0:00:40.5]} 27... h5
{[%clk 0:00:32.7]} 28. Kh1 {[%clk 0:00:25.7]} 28... Qd5 {[%clk 0:00:30.7]} 29.
Qg2 {[%clk 0:00:19.4]} 29... Bxd4 {[%clk 0:00:30.7]} 30. Bc2 {[%clk 0:00:15.5]}
30... Ne3 {[%clk 0:00:26.2]} 31. Rxe3 {[%clk 0:00:14.7]} 31... Bxe3 {[%clk
0:00:27.1]} 32. Bb3 {[%clk 0:00:14.9]} 1-0

[Event "*** SCC Grand Prix: Titled Tuesday Blitz"]
[Site "Chess.com"]
[Date "2020.07.07"]
[Round "4"]
[White "BigAl"]
[Black "Revnov"]
[Result "0-1"]
[WhiteElo "2502"]
[BlackElo "2685"]
[TimeControl "180+1"]
[EndTime "10:39:40 PDT"]
[Termination "Revnov won on time"]

1. e4 {[%clk 0:03:00.9]} 1... e5 {[%clk 0:02:58.9]} 2. Bc4 {[%clk 0:03:00.1]}
2... Nf6 {[%clk 0:02:57.3]} 3. d3 {[%clk 0:03:00.6]} 3... Nc6 {[%clk 0:02:57.2]}
4. Nf3 {[%clk 0:03:01.3]} 4... h6 {[%clk 0:02:53.7]} 5. O-O {[%clk 0:02:51]}
5... d6 {[%clk 0:02:50.6]} 6. a4 {[%clk 0:02:50.1]} 6... g5 {[%clk 0:02:49.1]}
7. a5 {[%clk 0:02:40.7]} 7... a6 {[%clk 0:02:40.6]} 8. c3 {[%clk 0:02:17.2]}
8... Bg7 {[%clk 0:02:40.1]} 9. Nbd2 {[%clk 0:02:11.6]} 9... O-O {[%clk
0:02:38.8]} 10. Re1 {[%clk 0:02:11.9]} 10... d5 {[%clk 0:02:32]} 11. exd5 {[%clk
0:02:11]} 11... Nxd5 {[%clk 0:02:32.9]} 12. Ne4 {[%clk 0:02:04.6]} 12... g4
{[%clk 0:02:20]} 13. Nfd2 {[%clk 0:02:04.7]} 13... Nf4 {[%clk 0:02:17.5]} 14.
Nf1 {[%clk 0:02:05]} 14... Kh8 {[%clk 0:02:15.7]} 15. d4 {[%clk 0:01:52.8]}
15... f5 {[%clk 0:02:06.6]} 16. Neg3 {[%clk 0:01:51.6]} 16... Qh4 {[%clk
0:01:32.6]} 17. dxe5 {[%clk 0:01:42.7]} 17... Nxg2 {[%clk 0:01:32.4]} 18. Kxg2
{[%clk 0:01:30.2]} 18... f4 {[%clk 0:01:32.8]} 19. e6 {[%clk 0:01:10.3]} 19...
Ne5 {[%clk 0:00:58.5]} 20. Rxe5 {[%clk 0:01:02.8]} 20... Bxe5 {[%clk 0:00:59.4]}
21. Qd5 {[%clk 0:00:49.1]} 21... Bg7 {[%clk 0:00:44]} 22. Qh5 {[%clk 0:00:20.5]}
22... Qh3+ {[%clk 0:00:28.6]} 23. Kg1 {[%clk 0:00:18.3]} 23... fxg3 {[%clk
0:00:24.9]} 24. Nxg3 {[%clk 0:00:17.2]} 24... Qxh5 {[%clk 0:00:19.6]} 25. Nxh5
{[%clk 0:00:17.2]} 25... Re8 {[%clk 0:00:20]} 26. Nf4 {[%clk 0:00:15.4]} 26...
b5 {[%clk 0:00:15.6]} 27. axb6 {[%clk 0:00:14.6]} 27... cxb6 {[%clk 0:00:16.5]}
28. Be3 {[%clk 0:00:08]} 28... Bb7 {[%clk 0:00:14]} 0-1

[Event "*** SCC Grand Prix: Titled Tuesday Blitz"]
[Site "Chess.com"]
[Date "2020.07.07"]
[Round "4"]
[White "econpower"]
[Black "ChessicallyInclined"]
[Result "1-0"]
[WhiteElo "2670"]
[BlackElo "2490"]
[TimeControl "180+1"]
[EndTime "10:39:40 PDT"]
[Termination "econpower won by resignation"]

1. c4 {[%clk 0:03:00.9]} 1... b6 {[%clk 0:02:59.4]} 2. d4 {[%clk 0:03:00.8]}
2... Nf6 {[%clk 0:02:56.6]} 3. Nc3 {[%clk 0:02:58.8]} 3... Bb7 {[%clk
0:02:52.6]} 4. d5 {[%clk 0:02:57.1]} 4... e6 {[%clk 0:02:50]} 5. a3 {[%clk
0:02:57]} 5... Bd6 {[%clk 0:02:48.8]} 6. e4 {[%clk 0:02:54.9]} 6... Be5 {[%clk
0:02:45.1]} 7. Bd3 {[%clk 0:02:49.1]} 7... Na6 {[%clk 0:02:19.9]} 8. Nge2 {[%clk
0:02:40.5]} 8... Nc5 {[%clk 0:02:19.5]} 9. Bc2 {[%clk 0:02:40.4]} 9... exd5
{[%clk 0:02:13.3]} 10. exd5 {[%clk 0:02:39.6]} 10... O-O {[%clk 0:02:09.5]} 11.
h3 {[%clk 0:02:26.5]} 11... c6 {[%clk 0:01:58.7]} 12. O-O {[%clk 0:02:24.9]}
12... cxd5 {[%clk 0:01:58.2]} 13. cxd5 {[%clk 0:02:25.8]} 13... Re8 {[%clk
0:01:44.8]} 14. Re1 {[%clk 0:02:24.8]} 14... Rc8 {[%clk 0:01:40.5]} 15. Bg5
{[%clk 0:02:20]} 15... h6 {[%clk 0:01:30.9]} 16. Bh4 {[%clk 0:02:19.4]} 16... a5
{[%clk 0:01:28.4]} 17. Rc1 {[%clk 0:02:10.9]} 17... Ba6 {[%clk 0:01:17.5]} 18.
b4 {[%clk 0:01:56.6]} 18... axb4 {[%clk 0:01:04.9]} 19. axb4 {[%clk 0:01:56.4]}
19... Bxe2 {[%clk 0:00:58.1]} 20. Nxe2 {[%clk 0:01:53.8]} 20... Nb7 {[%clk
0:00:57.6]} 21. Qd3 {[%clk 0:01:28.8]} 21... g6 {[%clk 0:00:49.6]} 22. f4 {[%clk
0:01:12.4]} 22... Bd6 {[%clk 0:00:43.6]} 23. Qd4 {[%clk 0:01:09.6]} 23... Be7
{[%clk 0:00:29.1]} 24. d6 {[%clk 0:01:05.5]} 24... Nxd6 {[%clk 0:00:23.3]} 25.
Bxf6 {[%clk 0:01:05.6]} 25... Nf5 {[%clk 0:00:21.8]} 26. Bxf5 {[%clk 0:00:54.5]}
26... Bxf6 {[%clk 0:00:20.6]} 27. Qd3 {[%clk 0:00:50.2]} 27... Rxc1 {[%clk
0:00:20.1]} 28. Rxc1 {[%clk 0:00:46.2]} 28... gxf5 {[%clk 0:00:19.9]} 29. Ng3
{[%clk 0:00:45.4]} 29... Qe7 {[%clk 0:00:16.8]} 30. Nxf5 {[%clk 0:00:40.6]}
30... Qxb4 {[%clk 0:00:17]} 31. Qxd7 {[%clk 0:00:33.8]} 31... Rf8 {[%clk
0:00:11.9]} 32. Rf1 {[%clk 0:00:30.5]} 32... Kh7 {[%clk 0:00:09.9]} 33. Kh2
{[%clk 0:00:28.3]} 33... b5 {[%clk 0:00:09.3]} 34. Ng3 {[%clk 0:00:27.2]} 34...
Qc4 {[%clk 0:00:08.2]} 35. Qf5+ {[%clk 0:00:27.2]} 35... Kg7 {[%clk 0:00:06.6]}
36. Nh5+ {[%clk 0:00:27.4]} 36... Kg8 {[%clk 0:00:07.2]} 37. Qxf6 {[%clk
0:00:27.2]} 1-0

[Event "*** SCC Grand Prix: Titled Tuesday Blitz"]
[Site "Chess.com"]
[Date "2020.07.07"]
[Round "4"]
[White "tsvet2005"]
[Black "ambaixador"]
[Result "1-0"]
[WhiteElo "2634"]
[BlackElo "2344"]
[TimeControl "180+1"]
[EndTime "10:39:40 PDT"]
[Termination "tsvet2005 won on time"]

1. d4 {[%clk 0:03:00.9]} 1... d5 {[%clk 0:02:58.3]} 2. c4 {[%clk 0:03:00.9]}
2... e6 {[%clk 0:02:57.4]} 3. Nc3 {[%clk 0:03:00.7]} 3... Nf6 {[%clk 0:02:57.5]}
4. cxd5 {[%clk 0:03:01.2]} 4... exd5 {[%clk 0:02:57.4]} 5. Bg5 {[%clk
0:03:01.5]} 5... c6 {[%clk 0:02:57.7]} 6. e3 {[%clk 0:03:01.9]} 6... h6 {[%clk
0:02:56.4]} 7. Bh4 {[%clk 0:03:01.7]} 7... Be7 {[%clk 0:02:51.9]} 8. Bd3 {[%clk
0:03:01.2]} 8... O-O {[%clk 0:02:50.4]} 9. Nge2 {[%clk 0:03:00.8]} 9... Nbd7
{[%clk 0:02:50.3]} 10. O-O {[%clk 0:03:00.3]} 10... Re8 {[%clk 0:02:50.4]} 11.
Qc2 {[%clk 0:03:00.3]} 11... Nf8 {[%clk 0:02:49.1]} 12. Rad1 {[%clk 0:02:59.2]}
12... Ne4 {[%clk 0:02:44.9]} 13. Bxe7 {[%clk 0:02:48.1]} 13... Qxe7 {[%clk
0:02:45.8]} 14. Bxe4 {[%clk 0:02:45.4]} 14... dxe4 {[%clk 0:02:44.9]} 15. d5
{[%clk 0:02:46.3]} 15... Bg4 {[%clk 0:02:37.1]} 16. dxc6 {[%clk 0:02:34.4]}
16... bxc6 {[%clk 0:02:38]} 17. h3 {[%clk 0:02:34.2]} 17... Bh5 {[%clk
0:02:34.6]} 18. Rd2 {[%clk 0:02:22.9]} 18... Rad8 {[%clk 0:02:17.3]} 19. Rxd8
{[%clk 0:02:10.3]} 19... Rxd8 {[%clk 0:02:18.2]} 20. Nf4 {[%clk 0:02:09.1]}
20... Qc5 {[%clk 0:01:22.4]} 21. Nxh5 {[%clk 0:02:02.3]} 21... Qxh5 {[%clk
0:01:23.3]} 22. Qxe4 {[%clk 0:02:00.5]} 22... Rd2 {[%clk 0:01:12.9]} 23. Qxc6
{[%clk 0:01:49.1]} 23... Rxb2 {[%clk 0:01:11.3]} 24. Nd5 {[%clk 0:01:47.8]}
24... Qe5 {[%clk 0:00:40.9]} 25. a4 {[%clk 0:01:37.9]} 25... Rd2 {[%clk
0:00:36.5]} 26. Nf4 {[%clk 0:01:32.9]} 26... Qd6 {[%clk 0:00:25.8]} 27. Qc4
{[%clk 0:01:25.6]} 27... Rd1 {[%clk 0:00:20.8]} 28. Rxd1 {[%clk 0:01:23.4]}
28... Qxd1+ {[%clk 0:00:21.7]} 29. Kh2 {[%clk 0:01:23.9]} 29... Qd6 {[%clk
0:00:21.6]} 30. g3 {[%clk 0:01:10.9]} 30... Qe7 {[%clk 0:00:19]} 31. Kg2 {[%clk
0:01:09.5]} 31... Qd7 {[%clk 0:00:18.2]} 32. a5 {[%clk 0:01:02.2]} 32... Qb7+
{[%clk 0:00:15.6]} 33. e4 {[%clk 0:01:00.2]} 33... Nd7 {[%clk 0:00:15.1]} 34. a6
{[%clk 0:00:57.1]} 34... Qb8 {[%clk 0:00:09.8]} 35. Nd5 {[%clk 0:00:54.7]} 35...
Ne5 {[%clk 0:00:08.1]} 36. Qc5 {[%clk 0:00:43.8]} 36... Kh7 {[%clk 0:00:04.1]}
37. Qe7 {[%clk 0:00:37.7]} 1-0

[Event "*** SCC Grand Prix: Titled Tuesday Blitz"]
[Site "Chess.com"]
[Date "2020.07.07"]
[Round "4"]
[White "IngOscarArdila"]
[Black "chenxiaoyuer"]
[Result "0-1"]
[WhiteElo "2170"]
[BlackElo "2407"]
[TimeControl "180+1"]
[EndTime "10:39:40 PDT"]
[Termination "chenxiaoyuer won by checkmate"]

1. d4 {[%clk 0:03:00.9]} 1... Nf6 {[%clk 0:02:59.4]} 2. c4 {[%clk 0:03:01]} 2...
g6 {[%clk 0:02:59]} 3. Nc3 {[%clk 0:03:00.6]} 3... Bg7 {[%clk 0:02:58.8]} 4. e4
{[%clk 0:03:01]} 4... d6 {[%clk 0:02:59.4]} 5. Nf3 {[%clk 0:03:01.4]} 5... O-O
{[%clk 0:02:59.5]} 6. Be2 {[%clk 0:03:01.6]} 6... e5 {[%clk 0:02:59.6]} 7. O-O
{[%clk 0:03:01.1]} 7... Nc6 {[%clk 0:02:59.6]} 8. d5 {[%clk 0:03:00.5]} 8... Ne7
{[%clk 0:02:59.6]} 9. Bg5 {[%clk 0:03:01]} 9... h6 {[%clk 0:02:57.8]} 10. Bxf6
{[%clk 0:03:01.2]} 10... Bxf6 {[%clk 0:02:58.7]} 11. b4 {[%clk 0:03:00.7]} 11...
Kg7 {[%clk 0:02:54.1]} 12. c5 {[%clk 0:02:59.2]} 12... Ng8 {[%clk 0:02:53.7]}
13. Nd2 {[%clk 0:02:56.5]} 13... Be7 {[%clk 0:02:53.3]} 14. Bg4 {[%clk 0:02:55]}
14... f5 {[%clk 0:02:52.1]} 15. Bf3 {[%clk 0:02:48.3]} 15... Nf6 {[%clk
0:02:47.7]} 16. cxd6 {[%clk 0:02:41.2]} 16... cxd6 {[%clk 0:02:46.6]} 17. h3
{[%clk 0:02:33]} 17... f4 {[%clk 0:02:42.1]} 18. Bg4 {[%clk 0:02:30.6]} 18...
Nxg4 {[%clk 0:02:40]} 19. hxg4 {[%clk 0:02:30.4]} 19... Rh8 {[%clk 0:02:32.8]}
20. Rc1 {[%clk 0:01:36.2]} 20... a6 {[%clk 0:02:14.3]} 21. a4 {[%clk 0:01:34.6]}
21... h5 {[%clk 0:02:13.9]} 22. g5 {[%clk 0:01:34.6]} 22... Bxg5 {[%clk
0:02:12.6]} 23. Nf3 {[%clk 0:01:34.7]} 23... Bf6 {[%clk 0:02:10.8]} 24. b5
{[%clk 0:01:33.1]} 24... g5 {[%clk 0:02:07.8]} 25. bxa6 {[%clk 0:01:28.4]} 25...
bxa6 {[%clk 0:02:07.1]} 26. Qc2 {[%clk 0:01:26.7]} 26... g4 {[%clk 0:02:06.5]}
27. Nd2 {[%clk 0:01:26.3]} 27... f3 {[%clk 0:02:03.8]} 28. Nd1 {[%clk
0:01:23.3]} 28... fxg2 {[%clk 0:02:01.9]} 29. Kxg2 {[%clk 0:01:22.5]} 29... Ra7
{[%clk 0:01:50.8]} 30. Ne3 {[%clk 0:01:20.4]} 30... Bg5 {[%clk 0:01:47.9]} 31.
Rfe1 {[%clk 0:01:07.9]} 31... Rf7 {[%clk 0:01:45.7]} 32. Ndf1 {[%clk 0:01:05.5]}
32... Qf6 {[%clk 0:01:42.8]} 33. Ng3 {[%clk 0:01:00.3]} 33... Qf3+ {[%clk
0:01:41.2]} 34. Kg1 {[%clk 0:00:57.3]} 34... Bxe3 {[%clk 0:01:26.3]} 35. Rxe3
{[%clk 0:00:56.4]} 35... Qf4 {[%clk 0:01:25.8]} 36. Nf5+ {[%clk 0:00:15.9]}
36... Bxf5 {[%clk 0:01:19.8]} 37. exf5 {[%clk 0:00:16.8]} 37... h4 {[%clk
0:01:15]} 38. Qe4 {[%clk 0:00:16.3]} 38... Qg5 {[%clk 0:01:11.6]} 39. Rc6 {[%clk
0:00:14.7]} 39... g3 {[%clk 0:01:09.7]} 40. fxg3 {[%clk 0:00:14.9]} 40... hxg3
{[%clk 0:01:09.5]} 41. Rxd6 {[%clk 0:00:14.5]} 41... Rh1+ {[%clk 0:00:39.4]} 42.
Kxh1 {[%clk 0:00:11.1]} 42... Qh5+ {[%clk 0:00:39.1]} 43. Kg1 {[%clk 0:00:10.3]}
43... Qh2+ {[%clk 0:00:38.6]} 44. Kf1 {[%clk 0:00:10.7]} 44... Qf2# {[%clk
0:00:39.2]} 0-1

[Event "*** SCC Grand Prix: Titled Tuesday Blitz"]
[Site "Chess.com"]
[Date "2020.07.07"]
[Round "4"]
[White "canary2016"]
[Black "AlanTate"]
[Result "0-1"]
[WhiteElo "1907"]
[BlackElo "2154"]
[TimeControl "180+1"]
[EndTime "10:39:45 PDT"]
[Termination "AlanTate won by checkmate"]

1. d4 {[%clk 0:03:00.9]} 1... Nf6 {[%clk 0:02:59.7]} 2. c4 {[%clk 0:02:59.9]}
2... e6 {[%clk 0:03:00.2]} 3. g3 {[%clk 0:02:59.2]} 3... c5 {[%clk 0:02:58.2]}
4. d5 {[%clk 0:02:58.3]} 4... exd5 {[%clk 0:02:58.7]} 5. cxd5 {[%clk 0:02:58.2]}
5... d6 {[%clk 0:02:59.4]} 6. Bg2 {[%clk 0:02:57]} 6... g6 {[%clk 0:03:00.1]} 7.
Nc3 {[%clk 0:02:56.2]} 7... Bg7 {[%clk 0:03:00.5]} 8. Nf3 {[%clk 0:02:55.6]}
8... O-O {[%clk 0:03:01]} 9. O-O {[%clk 0:02:55.4]} 9... Re8 {[%clk 0:03:01.5]}
10. Bf4 {[%clk 0:02:48.9]} 10... Bf5 {[%clk 0:03:01.1]} 11. Nb5 {[%clk
0:02:42.6]} 11... Ne4 {[%clk 0:02:18.3]} 12. Qb3 {[%clk 0:02:14]} 12... g5
{[%clk 0:01:56.1]} 13. Bc1 {[%clk 0:02:11.3]} 13... Nd7 {[%clk 0:01:41]} 14. Re1
{[%clk 0:02:05.6]} 14... h6 {[%clk 0:01:22.3]} 15. Nd2 {[%clk 0:02:05.3]} 15...
Ndf6 {[%clk 0:00:56.9]} 16. Nxe4 {[%clk 0:01:57.3]} 16... Bxe4 {[%clk
0:00:57.2]} 17. Bxe4 {[%clk 0:01:44.4]} 17... Rxe4 {[%clk 0:00:56.8]} 18. f3
{[%clk 0:01:42.4]} 18... Rb4 {[%clk 0:00:55.9]} 19. Qd3 {[%clk 0:01:41.6]} 19...
c4 {[%clk 0:00:54.8]} 20. Qc3 {[%clk 0:01:26.5]} 20... Nxd5 {[%clk 0:00:35.4]}
21. Qc2 {[%clk 0:01:13.4]} 21... Qb6+ {[%clk 0:00:27.9]} 22. Kg2 {[%clk
0:01:10]} 22... Qxb5 {[%clk 0:00:17.2]} 23. e4 {[%clk 0:01:03.8]} 23... Bxb2
{[%clk 0:00:14.6]} 24. Rb1 {[%clk 0:00:52.9]} 24... Bxc1 {[%clk 0:00:14.7]} 25.
Rxb4 {[%clk 0:00:32.2]} 25... Nxb4 {[%clk 0:00:14.3]} 26. Qxc1 {[%clk
0:00:29.2]} 26... Nd3 {[%clk 0:00:14.4]} 27. Qc3 {[%clk 0:00:23.5]} 27... Nxe1+
{[%clk 0:00:14.2]} 28. Qxe1 {[%clk 0:00:23.5]} 28... Qb2+ {[%clk 0:00:14.2]} 29.
Kh3 {[%clk 0:00:23.7]} 29... c3 {[%clk 0:00:10.4]} 30. Qe3 {[%clk 0:00:23.1]}
30... c2 {[%clk 0:00:09.7]} 31. Qd4 {[%clk 0:00:22.4]} 31... Qxd4 {[%clk
0:00:05.7]} 32. g4 {[%clk 0:00:19.8]} 32... c1=Q {[%clk 0:00:04.6]} 33. f4
{[%clk 0:00:20.2]} 33... Qf1+ {[%clk 0:00:04.6]} 34. Kg3 {[%clk 0:00:19.7]}
34... Qe3# {[%clk 0:00:04.8]} 0-1

[Event "*** SCC Grand Prix: Titled Tuesday Blitz"]
[Site "Chess.com"]
[Date "2020.07.07"]
[Round "4"]
[White "Man-Chuk"]
[Black "Rish_97"]
[Result "1/2-1/2"]
[WhiteElo "2857"]
[BlackElo "2653"]
[TimeControl "180+1"]
[EndTime "10:39:46 PDT"]
[Termination "Game drawn by agreement"]

1. d4 {[%clk 0:03:00.9]} 1... Nf6 {[%clk 0:02:58.8]} 2. c4 {[%clk 0:03:00.8]}
2... e6 {[%clk 0:02:58.8]} 3. Nf3 {[%clk 0:03:00.9]} 3... d5 {[%clk 0:02:58.4]}
4. Nc3 {[%clk 0:03:01.1]} 4... Bb4 {[%clk 0:02:58.4]} 5. Bg5 {[%clk 0:02:58.3]}
5... h6 {[%clk 0:02:58.2]} 6. Bxf6 {[%clk 0:02:58.3]} 6... Qxf6 {[%clk
0:02:59.1]} 7. e3 {[%clk 0:02:58.6]} 7... O-O {[%clk 0:02:57.8]} 8. Qb3 {[%clk
0:02:59.1]} 8... Bxc3+ {[%clk 0:02:31.9]} 9. bxc3 {[%clk 0:02:53.6]} 9... dxc4
{[%clk 0:02:31.6]} 10. Bxc4 {[%clk 0:02:54.5]} 10... b6 {[%clk 0:02:30]} 11. O-O
{[%clk 0:02:50.8]} 11... Nc6 {[%clk 0:02:29.9]} 12. Be2 {[%clk 0:02:49.4]} 12...
Na5 {[%clk 0:02:29.6]} 13. Qb2 {[%clk 0:01:55.6]} 13... Bb7 {[%clk 0:02:28.2]}
14. Rac1 {[%clk 0:01:52.5]} 14... Rfd8 {[%clk 0:02:22.9]} 15. Rfd1 {[%clk
0:01:46.6]} 15... Rac8 {[%clk 0:02:18.7]} 16. Ne5 {[%clk 0:01:38]} 16... c5
{[%clk 0:02:18.7]} 17. Bf3 {[%clk 0:01:36.1]} 17... Bxf3 {[%clk 0:02:18.3]} 18.
Nxf3 {[%clk 0:01:37]} 18... Rc7 {[%clk 0:02:15.4]} 19. e4 {[%clk 0:01:25.8]}
19... Rdc8 {[%clk 0:02:13.5]} 20. d5 {[%clk 0:01:21.8]} 20... exd5 {[%clk
0:02:13.1]} 21. exd5 {[%clk 0:01:22.7]} 21... Nc4 {[%clk 0:02:12.8]} 22. Qe2
{[%clk 0:01:05.2]} 22... Nd6 {[%clk 0:02:12.9]} 23. Qe5 {[%clk 0:01:05.5]} 23...
Qxe5 {[%clk 0:01:59.5]} 24. Nxe5 {[%clk 0:01:06.4]} 24... Re8 {[%clk 0:01:59.9]}
25. Nc6 {[%clk 0:01:00.6]} 25... Re2 {[%clk 0:01:58.3]} 26. a4 {[%clk
0:00:59.1]} 26... Kf8 {[%clk 0:01:34.9]} 27. a5 {[%clk 0:00:45.7]} 27... b5
{[%clk 0:01:22.3]} 28. a6 {[%clk 0:00:44.5]} 28... Re8 {[%clk 0:01:15]} 29. Re1
{[%clk 0:00:40.1]} 29... Ne4 {[%clk 0:01:01.1]} 30. f3 {[%clk 0:00:30.4]} 30...
Nf6 {[%clk 0:00:57.6]} 31. Rxe8+ {[%clk 0:00:23.9]} 31... Kxe8 {[%clk
0:00:57.8]} 32. Re1+ {[%clk 0:00:23.4]} 32... Kf8 {[%clk 0:00:58.1]} 33. Rd1
{[%clk 0:00:11.9]} 33... Nxd5 {[%clk 0:00:55.2]} 34. Nxa7 {[%clk 0:00:10.6]}
34... Rxa7 {[%clk 0:00:36.9]} 35. Rxd5 {[%clk 0:00:10.3]} 35... Rxa6 {[%clk
0:00:34.9]} 36. Rxc5 {[%clk 0:00:10.6]} 1/2-1/2